bitfinex/quotes_BTCUSD_20251215
["timestamp","ask_amount","ask_price","bid_price","bid_amount"]
[1765830581945,0.23291563,85868.0,85867.0,0.00661287]
[1765830582183,0.01164456,85877.0,85872.0,0.01164523]
[1765830582464,0.01164401,85881.0,85878.0,0.04438]
[1765830582683,0.01164401,85881.0,85875.0,0.01852]
[1765830582684,0.23289394,85876.0,85875.0,0.01852]
[1765830585093,0.23289394,85876.0,85875.0,0.01952]
[1765830585297,0.23289394,85876.0,85875.0,0.02052]
[1765830585905,0.23289201,85877.0,85875.0,0.02052]
[1765830586125,0.23289394,85876.0,85875.0,0.02052]
[1765830586280,0.23289201,85877.0,85876.0,0.04438]
[1765830586688,0.01164429,85879.0,85876.0,0.04438]
[1765830586892,0.01164442,85878.0,85875.0,0.01952]
[1765830587085,0.23289192,85877.0,85875.0,0.01952]
[1765830587539,0.23289192,85877.0,85875.0,0.01852]
[1765830587692,0.23289394,85876.0,85875.0,0.01852]
[1765830588036,0.23289394,85876.0,85875.0,0.01952]
[1765830588756,0.23289394,85876.0,85875.0,0.01852]
[1765830588896,0.34465394,85876.0,85875.0,0.02052]
[1765830589097,0.27674394,85876.0,85875.0,0.02052]
[1765830589320,0.23289394,85876.0,85875.0,0.02052]
[1765830590960,0.22989297,85876.0,85875.0,0.02052]
[1765830591365,0.22989297,85876.0,85875.0,0.0649]
[1765830592008,0.37582297,85876.0,85875.0,0.002]
[1765830593091,0.43406265,85876.0,85875.0,0.002]
[1765830593297,0.37582297,85876.0,85875.0,0.002]
[1765830593452,0.43406265,85876.0,85875.0,0.002]
[1765830593792,0.40686097,85876.0,85875.0,0.002]
[1765830594175,0.46510065,85876.0,85875.0,0.002]
[1765830594562,0.40686097,85876.0,85875.0,0.002]
[1765830595150,0.29510097,85876.0,85875.0,0.002]
[1765830595502,0.22989297,85876.0,85875.0,0.002]
[1765830596631,0.22989297,85876.0,85875.0,0.00361287]
[1765830596809,0.23289394,85876.0,85875.0,0.04799287]
[1765830597018,0.23289394,85876.0,85875.0,0.11894287]
[1765830597229,0.23289394,85876.0,85875.0,0.00361287]
[1765830598935,0.23289192,85877.0,85875.0,0.00361287]
[1765830599151,0.23289394,85876.0,85875.0,0.00361287]
[1765830600020,0.23289394,85876.0,85875.0,0.00261287]
[1765830600238,0.23289394,85876.0,85875.0,0.00161287]
[1765830600470,0.44688978,85876.0,85875.0,0.001]
[1765830600696,0.031038,85880.0,85878.0,0.23288851]
[1765830600903,0.031038,85886.0,85884.0,0.23287224]
[1765830601117,0.041384,85891.0,85880.0,0.23288309]
[1765830601118,0.04268147,85885.0,85880.0,0.01164415]
[1765830601359,0.24451467,85885.0,85881.0,0.26698038]
[1765830601600,0.24451467,85885.0,85884.0,0.04438]
[1765830602060,0.27654856,85886.0,85884.0,0.04438]
[1765830602304,0.27654856,85886.0,85885.0,0.04604]
[1765830602552,0.02590591,85886.0,85884.0,0.23287201]
[1765830602792,0.23287743,85883.0,85881.0,0.03571287]
[1765830603017,0.03654938,85885.0,85853.0,0.46591175]
[1765830603018,0.01164578,85868.0,85863.0,0.0002]
[1765830603239,0.03113106,85872.0,85867.0,0.01164591]
[1765830603464,0.04277602,85874.0,85871.0,0.2329075]
[1765830603694,0.2445486,85873.0,85870.0,0.24455326]
[1765830603915,0.01164469,85876.0,85871.0,0.01164537]
[1765830604136,0.07632562,85877.0,85871.0,0.01164537]
[1765830604137,0.06468106,85877.0,85871.0,0.01164537]
[1765830604358,0.27567204,85877.0,85873.0,0.23290048]
[1765830604618,0.27567204,85877.0,85870.0,0.01164551]
[1765830604619,0.23290199,85874.0,85870.0,0.01164551]
[1765830604814,0.01164469,85876.0,85873.0,0.23290207]
[1765830605042,0.24454112,85876.0,85872.0,0.01164523]
[1765830605378,0.24454326,85875.0,85872.0,0.01164523]
[1765830605617,0.23290478,85872.0,85871.0,0.001]
[1765830606064,0.23290207,85873.0,85871.0,0.001]
[1765830606290,0.01164496,85874.0,85871.0,0.01164537]
[1765830606515,0.23288724,85879.0,85871.0,0.01164537]
[1765830606516,0.02490591,85878.0,85877.0,0.23289122]
[1765830606685,0.01164429,85879.0,85876.0,0.23289394]
[1765830606897,0.24453268,85879.0,85877.0,0.04604]
[1765830607323,0.03113106,85884.0,85878.0,0.01164442]
[1765830607541,0.03113106,85887.0,85886.0,0.23286682]
[1765830607751,0.03113106,85888.0,85886.0,0.23286682]
[1765830607957,0.27563528,85889.0,85885.0,0.244512]
[1765830608165,0.03113106,85889.0,85887.0,0.23286153]
[1765830608382,0.01164212,85895.0,85888.0,0.05768307]
[1765830608383,0.03113106,85892.0,85888.0,0.05768307]
[1765830608591,0.07311005,85903.0,85888.0,0.05768307]
[1765830608592,0.03113106,85896.0,85894.0,0.04604]
[1765830608791,0.23284242,85895.0,85894.0,0.05445287]
[1765830608942,0.23284242,85895.0,85894.0,0.02013287]
[1765830609163,0.23284242,85895.0,85894.0,0.01852]
[1765830609164,0.28088242,85895.0,85894.0,0.01852]
[1765830609355,0.0116432,85887.0,85883.0,0.01343]
[1765830609580,0.01164293,85889.0,85884.0,0.01852]
[1765830609880,0.002,85888.0,85887.0,0.24450731]
[1765830610064,0.001,85888.0,85887.0,0.00161287]
[1765830610398,0.24448906,85894.0,85891.0,0.23285176]
[1765830610780,0.23285431,85891.0,85887.0,0.29216003]
[1765830611017,0.01164279,85890.0,85887.0,0.00161287]
[1765830611140,0.2444875,85894.0,85893.0,0.03391]
[1765830611572,0.23284513,85894.0,85893.0,0.07995]
[1765830611779,0.23284513,85894.0,85893.0,0.03391]
[1765830611975,0.23285896,85889.0,85887.0,0.00261287]
[1765830612179,0.2328614,85888.0,85887.0,0.00261287]
[1765830612526,0.24449023,85893.0,85889.0,0.01164293]
[1765830612728,0.23285597,85890.0,85887.0,0.12920607]
[1765830612929,0.23285597,85890.0,85887.0,0.36206775]
[1765830613262,0.23285335,85891.0,85889.0,0.01164293]
[1765830613485,0.23285335,85891.0,85888.0,0.23286099]
[1765830613630,0.24449359,85892.0,85889.0,0.24450154]
[1765830613813,0.02491234,85895.0,85892.0,0.23285055]
[1765830614021,0.03114674,85902.0,85894.0,0.07934]
[1765830614022,0.0116413,85901.0,85894.0,0.07934]
[1765830614224,0.01164144,85900.0,85897.0,0.01164185]
[1765830614577,0.0116409,85904.0,85900.0,0.04604]
[1765830614578,0.23281866,85904.0,85900.0,0.04604]
[1765830614787,0.24445892,85904.0,85903.0,0.04604]
[1765830614990,0.24444339,85910.0,85906.0,0.01164063]
[1765830615192,0.03114674,85920.0,85906.0,0.01164063]
[1765830615193,0.03114674,85921.0,85908.0,0.31274718]
[1765830615349,0.01163832,85923.0,85908.0,0.31436005]
[1765830615545,0.23275693,85927.0,85908.0,0.15146287]
[1765830615546,0.01163995,85911.0,85908.0,0.15146287]
[1765830615748,0.23280718,85908.0,85907.0,0.01852]
[1765830615981,0.24446405,85903.0,85899.0,0.01164157]
[1765830616136,0.001,85901.0,85899.0,0.23283139]
[1765830616336,0.01164049,85907.0,85904.0,0.0116409]
[1765830616587,0.24445135,85907.0,85906.0,0.0337]
[1765830617276,0.40710492,85909.0,85906.0,0.0337]
[1765830617277,0.17429923,85909.0,85906.0,0.0337]
[1765830617480,0.17429923,85909.0,85908.0,0.04604]
[1765830617703,0.17429923,85909.0,85908.0,0.04765287]
[1765830617915,0.17429923,85909.0,85908.0,0.11756287]
[1765830620531,0.17429923,85909.0,85908.0,0.11956287]
[1765830620729,0.4071037,85909.0,85908.0,0.00361287]
[1765830620996,0.5221737,85909.0,85908.0,0.002]
[1765830621199,0.5221737,85909.0,85908.0,0.003]
[1765830621842,0.5221737,85909.0,85908.0,0.001]
[1765830622221,0.4071037,85909.0,85908.0,0.001]
[1765830622426,0.01164198,85896.0,85893.0,0.0331]
[1765830622626,0.23284513,85894.0,85893.0,0.03471287]
[1765830622854,0.23284436,85895.0,85893.0,0.03471287]
[1765830623086,0.23284513,85894.0,85893.0,0.03471287]
[1765830623215,0.23284436,85895.0,85894.0,0.04604]
[1765830623413,0.23283581,85898.0,85894.0,0.05929512]
[1765830623795,0.01164157,85899.0,85898.0,0.04604]
[1765830623987,0.01164185,85897.0,85894.0,0.00161287]
[1765830624200,0.23284242,85895.0,85894.0,0.00161287]
[1765830624954,0.23284029,85896.0,85894.0,0.04765287]
[1765830625179,0.01164171,85898.0,85895.0,0.11595]
[1765830625422,0.2444761,85898.0,85895.0,0.07152287]
[1765830625628,0.2444761,85898.0,85897.0,0.04604]
[1765830626351,0.01164144,85900.0,85897.0,0.11756287]
[1765830626563,0.2444705,85900.0,85899.0,0.04604]
[1765830626768,0.23283429,85898.0,85897.0,0.00161287]
[1765830627018,0.23285055,85892.0,85884.0,0.01164361]
[1765830627190,0.23285055,85892.0,85883.0,0.25794857]
[1765830627388,0.23285055,85892.0,85885.0,0.01164347]
[1765830628561,0.23285055,85892.0,85888.0,0.01164307]
[1765830628926,0.23285055,85892.0,85891.0,0.01952]
[1765830629327,0.34792055,85892.0,85891.0,0.001]
[1765830629548,0.45489382,85892.0,85891.0,0.001]
[1765830629915,0.51303361,85892.0,85891.0,0.001]
[1765830630367,0.34792055,85892.0,85891.0,0.002]
[1765830630597,0.23285055,85892.0,85891.0,0.002]
[1765830631065,0.23285627,85890.0,85887.0,0.0116432]
[1765830631253,0.24448491,85895.0,85891.0,0.04467287]
[1765830631459,0.24448491,85895.0,85893.0,0.04306]
[1765830631460,0.24448805,85894.0,85893.0,0.04306]
[1765830631864,0.01164198,85896.0,85894.0,0.03171]
[1765830632044,0.01164198,85896.0,85891.0,0.00161287]
[1765830632045,0.23285055,85892.0,85891.0,0.00161287]
[1765830632245,0.0116432,85887.0,85884.0,0.01164361]
[1765830632483,0.01164347,85885.0,85881.0,0.04180803]
[1765830632700,0.01164334,85886.0,85881.0,0.2630419]
[1765830632905,0.24451082,85886.0,85881.0,0.03177688]
[1765830633321,0.23287091,85885.0,85881.0,0.03177688]
[1765830633734,0.23287091,85885.0,85882.0,0.01164388]
[1765830633944,0.23286953,85885.0,85884.0,0.04729]
[1765830634154,0.01164347,85885.0,85883.0,0.23287415]
[1765830634692,0.24450955,85887.0,85884.0,0.23287224]
[1765830634891,0.23286348,85888.0,85885.0,0.24451062]
[1765830635092,0.23286348,85888.0,85883.0,0.24451789]
[1765830635093,0.24450813,85887.0,85883.0,0.24451789]
[1765830635276,0.24450813,85887.0,85883.0,0.01264374]
[1765830635513,0.24450479,85888.0,85884.0,0.01164361]
[1765830635716,0.23286477,85887.0,85884.0,0.24451543]
[1765830635920,0.23286801,85886.0,85884.0,0.00261287]
[1765830636334,0.23286801,85886.0,85885.0,0.04729]
[1765830636532,0.244508,85887.0,85885.0,0.04890287]
[1765830636818,0.24450603,85888.0,85886.0,0.04729]
[1765830637123,0.23286411,85887.0,85886.0,0.04729]
[1765830637324,0.23286682,85886.0,85885.0,0.00161287]
[1765830638448,0.01164307,85888.0,85885.0,0.00161287]
[1765830638639,0.01164307,85888.0,85885.0,0.00261287]
[1765830639484,0.27716682,85886.0,85885.0,0.001]
[1765830639939,0.34746682,85886.0,85885.0,0.001]
[1765830640149,0.40560661,85886.0,85885.0,0.001]
[1765830640352,0.2329131,85869.0,85868.0,0.01852]
[1765830640638,0.2329131,85869.0,85863.0,0.0002]
[1765830640639,0.23291904,85867.0,85863.0,0.0002]
[1765830640816,0.23292106,85866.0,85863.0,0.0002]
[1765830641839,0.23292106,85866.0,85865.0,0.0012]
[1765830642237,0.23292106,85866.0,85865.0,0.0002]
[1765830643483,0.23292106,85866.0,85865.0,0.0012]
[1765830643689,0.27722106,85866.0,85865.0,0.0012]
[1765830643921,0.0443,85866.0,85865.0,0.0012]
[1765830644807,0.27722106,85866.0,85865.0,0.0012]
[1765830647262,0.34752106,85866.0,85865.0,0.0012]
[1765830647458,0.45085004,85866.0,85865.0,0.0012]
[1765830647801,0.45085004,85866.0,85863.0,0.0002]
[1765830647802,0.23292377,85865.0,85863.0,0.0002]
[1765830648002,0.23292377,85865.0,85854.0,0.0002]
[1765830648003,0.2329509,85855.0,85854.0,0.0002]
[1765830648206,0.3112909,85855.0,85854.0,0.0002]
[1765830648406,0.3815909,85855.0,85854.0,0.0002]
[1765830649091,0.43983058,85855.0,85854.0,0.0002]
[1765830649248,0.3815909,85855.0,85854.0,0.0002]
[1765830651923,0.43983058,85855.0,85854.0,0.0002]
[1765830652100,0.44083058,85855.0,85854.0,0.0002]
[1765830652300,0.3825909,85855.0,85854.0,0.0002]
[1765830653213,0.3835909,85855.0,85854.0,0.0002]
[1765830654589,0.44183058,85855.0,85854.0,0.0002]
[1765830654796,0.3835909,85855.0,85854.0,0.0002]
[1765830659129,0.002,85855.0,85854.0,0.0002]
[1765830659657,0.2349509,85855.0,85854.0,0.0002]
[1765830659871,0.2349509,85855.0,85854.0,0.28205648]
[1765830659872,0.002,85855.0,85854.0,0.28205648]
[1765830660101,0.001,85855.0,85854.0,0.36682648]
[1765830660303,0.001,85855.0,85854.0,0.41684487]
[1765830660501,0.01164523,85872.0,85868.0,0.23291338]
[1765830660802,0.01164523,85872.0,85866.0,0.01164605]
[1765830660803,0.01164537,85871.0,85866.0,0.01164605]
[1765830660982,0.01164551,85870.0,85866.0,0.24456592]
[1765830661179,0.01164578,85868.0,85865.0,0.03252]
[1765830661366,0.24456165,85868.0,85865.0,0.27708926]
[1765830661575,0.01164496,85874.0,85870.0,0.01164551]
[1765830661782,0.03114674,85883.0,85879.0,0.2328858]
[1765830661981,0.01164279,85890.0,85879.0,0.2328858]
[1765830661982,0.03114674,85886.0,85885.0,0.23286953]
[1765830662200,0.27564467,85891.0,85887.0,0.24450703]
[1765830662397,0.2444962,85891.0,85888.0,0.01164307]
[1765830662607,0.2444962,85891.0,85885.0,0.00161287]
[1765830662608,0.23286455,85887.0,85885.0,0.00161287]
[1765830662826,0.01164279,85890.0,85886.0,0.23286651]
[1765830662992,0.24449658,85891.0,85887.0,0.0116432]
[1765830662993,0.01164266,85891.0,85887.0,0.0116432]
[1765830663328,0.03114674,85893.0,85892.0,0.28286894]
[1765830663659,0.04278831,85899.0,85896.0,0.24448022]
[1765830663914,0.01164144,85900.0,85896.0,0.24448022]
[1765830663915,0.03114674,85900.0,85897.0,0.24447819]
[1765830664164,0.03114674,85902.0,85899.0,0.07612]
[1765830664372,0.23282616,85901.0,85899.0,0.03192]
[1765830664616,0.01164212,85895.0,85892.0,0.01852]
[1765830664807,0.2444803,85897.0,85893.0,0.24348856]
[1765830664959,0.01164198,85896.0,85893.0,0.01064239]
[1765830665281,0.24448454,85895.0,85894.0,0.01852]
[1765830665581,0.2444834,85896.0,85894.0,0.01852]
[1765830665813,0.03195,85895.0,85894.0,0.01852]
[1765830666244,0.26926924,85897.0,85894.0,0.01852]
[1765830666245,0.2328409,85896.0,85894.0,0.01852]
[1765830666628,0.01164185,85897.0,85894.0,0.01852]
[1765830666831,0.01164171,85898.0,85895.0,0.01164212]
[1765830667066,0.01164185,85897.0,85894.0,0.01852]
[1765830667275,0.23284242,85895.0,85894.0,0.01852]
[1765830667543,0.23283971,85896.0,85894.0,0.01852]
[1765830667933,0.25762442,85898.0,85894.0,0.26300634]
[1765830668095,0.2328424,85896.0,85894.0,0.01852]
[1765830668926,0.03642967,85897.0,85894.0,0.01852]
[1765830669125,0.23284101,85896.0,85894.0,0.01852]
[1765830670076,0.03195,85895.0,85894.0,0.01852]
[1765830670258,0.23284101,85896.0,85894.0,0.01852]
[1765830670954,0.07433,85895.0,85894.0,0.01852]
[1765830671376,0.23284115,85896.0,85894.0,0.01852]
[1765830671563,0.04271117,85897.0,85894.0,0.01852]
[1765830671762,0.23284242,85895.0,85894.0,0.01852]
[1765830672545,0.26479242,85895.0,85894.0,0.01852]
[1765830673255,0.03195,85895.0,85893.0,0.01852]
[1765830673454,0.01164225,85894.0,85893.0,0.01852]
[1765830673921,0.03195,85895.0,85893.0,0.01852]
[1765830674949,0.23284513,85894.0,85893.0,0.01852]
[1765830675239,0.01164361,85884.0,85881.0,0.23287785]
[1765830675378,0.24451853,85884.0,85882.0,0.01852]
[1765830675577,0.23287495,85883.0,85882.0,0.01852]
[1765830676092,0.24451853,85884.0,85882.0,0.25139755]
[1765830676625,0.24451853,85884.0,85882.0,0.25139742]
[1765830676791,0.24451853,85884.0,85882.0,0.01852]
[1765830677013,0.23287495,85883.0,85882.0,0.01852]
[1765830677212,0.2445159,85884.0,85882.0,0.01852]
[1765830677454,0.27525495,85883.0,85882.0,0.01852]
[1765830677979,0.01164496,85874.0,85869.0,0.23291039]
[1765830678255,0.0116451,85873.0,85870.0,0.01852]
[1765830678510,0.24454729,85873.0,85870.0,0.26307562]
[1765830678724,0.02485546,85881.0,85880.0,0.23288309]
[1765830678975,0.03109487,85895.0,85892.0,0.01164252]
[1765830679184,0.03109487,85895.0,85894.0,0.27704513]
[1765830679403,0.03109487,85897.0,85896.0,0.23283971]
[1765830679827,0.03109487,85898.0,85897.0,0.232837]
[1765830679961,0.03109487,85898.0,85897.0,0.299677]
[1765830680334,0.03109487,85898.0,85897.0,0.11104]
[1765830680510,0.03109487,85898.0,85893.0,0.01852]
[1765830680732,0.03109487,85898.0,85897.0,0.0442]
[1765830680977,0.03109487,85899.0,85897.0,0.0442]
[1765830681113,0.03109487,85900.0,85898.0,0.23283179]
[1765830681313,0.01164117,85902.0,85900.0,0.2328288]
[1765830681535,0.01164117,85902.0,85899.0,0.01164157]
[1765830681536,0.01164103,85903.0,85899.0,0.28867138]
[1765830681716,0.24446378,85903.0,85902.0,0.0442]
[1765830682763,0.01164171,85898.0,85894.0,0.24448664]
[1765830682963,0.0116413,85901.0,85896.0,0.24448169]
[1765830682964,0.24446895,85901.0,85896.0,0.24448169]
[1765830683291,0.01164144,85900.0,85896.0,0.01164198]
[1765830683445,0.2444772,85898.0,85894.0,0.24448635]
[1765830683890,0.01164185,85897.0,85894.0,0.24448635]
[1765830684113,0.24447508,85899.0,85895.0,0.2444842]
[1765830684430,0.24447374,85899.0,85896.0,0.01164198]
[1765830684681,0.24448106,85897.0,85893.0,0.26300858]
[1765830684887,0.01164157,85899.0,85895.0,0.01164212]
[1765830685086,0.23282368,85902.0,85898.0,0.0442]
[1765830685298,0.01164103,85903.0,85898.0,0.0442]
[1765830685299,0.23282916,85900.0,85898.0,0.0442]
[1765830685430,0.23283158,85899.0,85898.0,0.0442]
[1765830686569,0.03195,85916.0,85898.0,0.0442]
[1765830686777,0.01163927,85916.0,85913.0,0.01163968]
[1765830687027,0.011639,85918.0,85915.0,0.02069]
[1765830687162,0.01163914,85917.0,85914.0,0.01852]
[1765830687357,0.23278822,85915.0,85914.0,0.01852]
[1765830688453,0.34191822,85915.0,85914.0,0.01852]
[1765830688686,0.23282887,85900.0,85899.0,0.00161287]
[1765830688894,0.01164212,85895.0,85888.0,0.04443307]
[1765830689078,0.23284837,85893.0,85890.0,0.24449645]
[1765830689277,0.23284837,85893.0,85889.0,0.01852]
[1765830689278,0.23285342,85891.0,85889.0,0.01852]
[1765830690338,0.01164212,85895.0,85889.0,0.01852]
[1765830690339,0.01164171,85898.0,85895.0,0.01164212]
[1765830690540,0.01164171,85898.0,85890.0,0.11104]
[1765830690541,0.01164198,85896.0,85890.0,0.11104]
[1765830690727,0.01164239,85893.0,85890.0,0.06684]
[1765830690926,0.23285326,85891.0,85889.0,0.01852]
[1765830691343,0.01164252,85892.0,85889.0,0.03016293]
[1765830691551,0.24449029,85893.0,85890.0,0.24449801]
[1765830691753,0.24449029,85893.0,85890.0,0.01164279]
[1765830691950,0.01164239,85893.0,85890.0,0.24549667]
[1765830692368,0.24448751,85894.0,85891.0,0.01164266]
[1765830692567,0.01164225,85894.0,85891.0,0.24449541]
[1765830692782,0.24448961,85895.0,85892.0,0.01164252]
[1765830692978,0.24447408,85899.0,85896.0,0.01164198]
[1765830693200,0.24447031,85900.0,85896.0,0.2444804]
[1765830693370,0.01164144,85900.0,85897.0,0.06628]
[1765830693583,0.0116413,85901.0,85897.0,0.06628]
[1765830693790,0.01164103,85903.0,85900.0,0.04334]
[1765830694130,0.23282616,85901.0,85900.0,0.04334]
[1765830694489,0.23283429,85898.0,85897.0,0.00161287]
[1765830694905,0.23283234,85899.0,85897.0,0.04495287]
[1765830695458,0.23283429,85898.0,85897.0,0.04495287]
[1765830695658,0.23283429,85898.0,85897.0,0.04595287]
[1765830696105,0.01164144,85900.0,85897.0,0.04495287]
[1765830696310,0.24446685,85902.0,85899.0,0.04334]
[1765830696485,0.24446537,85902.0,85899.0,0.29465023]
[1765830696869,0.24445622,85905.0,85899.0,0.29465023]
[1765830696870,0.24445739,85905.0,85902.0,0.01164117]
[1765830697069,0.01163954,85914.0,85907.0,0.01164049]
[1765830697326,0.01164035,85908.0,85906.0,0.04334]
[1765830697681,0.01164035,85908.0,85907.0,0.10962]
[1765830698094,0.24444753,85908.0,85907.0,0.10962]
[1765830698277,0.23281453,85906.0,85902.0,0.00161287]
[1765830698663,0.24445044,85907.0,85905.0,0.04334]
[1765830698793,0.2328126,85906.0,85905.0,0.04334]
[1765830698995,0.24445044,85907.0,85905.0,0.04334]
[1765830699226,0.03654975,85914.0,85906.0,0.10962]
[1765830699394,0.01163941,85915.0,85914.0,0.04334]
[1765830699590,0.01163941,85915.0,85914.0,0.06182]
[1765830699821,0.24442763,85915.0,85914.0,0.1281]
[1765830700227,0.23278822,85915.0,85914.0,0.12971287]
[1765830700429,0.23278822,85915.0,85914.0,0.06182]
[1765830700649,0.23278822,85915.0,85914.0,0.01848]
[1765830701460,0.23278822,85915.0,85914.0,0.02048]
[1765830701692,0.23278822,85915.0,85914.0,0.02148]
[1765830701884,0.23278822,85915.0,85914.0,0.01948]
[1765830702085,0.23278822,85915.0,85914.0,0.06182]
[1765830702660,0.23278822,85915.0,85914.0,0.01848]
[1765830703201,0.23284242,85895.0,85892.0,0.23285003]
[1765830703345,0.24448454,85895.0,85893.0,0.25132726]
[1765830703588,0.24448187,85896.0,85893.0,0.01848]
[1765830703754,0.23284513,85894.0,85893.0,0.01848]
[1765830704364,0.33891513,85894.0,85893.0,0.01848]
[1765830704850,0.33991513,85894.0,85893.0,0.01848]
[1765830705049,0.33991513,85894.0,85876.0,0.23289321]
[1765830705050,0.01164456,85877.0,85871.0,0.01164537]
[1765830705270,0.01164429,85879.0,85875.0,0.01164483]
[1765830705490,0.24453986,85876.0,85872.0,0.01848]
[1765830705880,0.23290207,85873.0,85872.0,0.01848]
[1765830707683,0.01164564,85869.0,85866.0,0.00161287]
[1765830708353,0.01164523,85872.0,85868.0,0.2329152]
[1765830708564,0.2329104,85870.0,85868.0,0.04334]
[1765830708766,0.01164483,85875.0,85868.0,0.04334]
[1765830708767,0.01164388,85882.0,85873.0,0.0116451]
[1765830708975,0.23288658,85879.0,85876.0,0.24453816]
[1765830709180,0.2445274,85880.0,85877.0,0.23289003]
[1765830709611,0.01164361,85884.0,85880.0,0.01164415]
[1765830709819,0.23285107,85892.0,85880.0,0.01164415]
[1765830709820,0.01164307,85888.0,85885.0,0.23286912]
[1765830710052,0.24449058,85893.0,85890.0,0.01164279]
[1765830710271,0.09521,85901.0,85890.0,0.01164279]
[1765830710272,0.01164117,85902.0,85897.0,0.01164185]
[1765830710475,0.0116413,85901.0,85897.0,0.01325472]
[1765830710606,0.0116409,85904.0,85898.0,0.01164171]
[1765830710791,0.01164049,85907.0,85904.0,0.0116409]
[1765830710998,0.01164022,85909.0,85905.0,0.03801076]
[1765830711223,0.23281097,85907.0,85905.0,0.02637]
[1765830711428,0.24444793,85908.0,85905.0,0.02637]
[1765830712568,0.24444299,85910.0,85905.0,0.27082574]
[1765830712978,0.24445015,85908.0,85905.0,0.27082574]
[1765830713184,0.24445015,85908.0,85905.0,0.27182574]
[1765830713422,0.01164035,85908.0,85905.0,0.26018416]
[1765830713628,0.01164035,85908.0,85905.0,0.27082492]
[1765830713843,0.0116413,85901.0,85898.0,0.23444678]
[1765830714051,0.01164103,85903.0,85899.0,0.01164157]
[1765830714258,0.23282645,85901.0,85899.0,0.01164157]
[1765830714464,0.24445894,85904.0,85901.0,0.23282582]
[1765830714820,0.23282117,85903.0,85900.0,0.24447016]
[1765830715035,0.23282376,85902.0,85900.0,0.01164144]
[1765830715239,0.0116409,85904.0,85901.0,0.0116413]
[1765830715669,0.23281444,85906.0,85902.0,0.24446368]
[1765830715875,0.23281589,85905.0,85902.0,0.24446368]
[1765830716080,0.23282073,85903.0,85900.0,0.23382807]
[1765830716282,0.23282355,85902.0,85900.0,0.23382807]
[1765830716721,0.23282519,85902.0,85900.0,0.001]
[1765830716922,0.23282616,85901.0,85900.0,0.001]
[1765830717098,0.01164076,85905.0,85900.0,0.001]
[1765830717317,0.0116409,85904.0,85901.0,0.0116413]
[1765830717541,0.24446156,85904.0,85901.0,0.0116413]
[1765830717750,0.02497468,85907.0,85903.0,0.04334]
[1765830717921,0.01164008,85910.0,85906.0,0.04334]
[1765830718127,0.01164022,85909.0,85908.0,0.04334]
[1765830718522,0.01163968,85913.0,85910.0,0.01164008]
[1765830718787,0.01163968,85913.0,85908.0,0.04334]
[1765830718788,0.23280017,85911.0,85908.0,0.04334]
[1765830718993,0.23280017,85911.0,85907.0,0.24444974]
[1765830718994,0.24444012,85911.0,85907.0,0.24444974]
[1765830719360,0.23280447,85909.0,85906.0,0.01164063]
[1765830719565,0.23280989,85907.0,85905.0,0.02509]
[1765830720170,0.2328126,85906.0,85905.0,0.02509]
[1765830720595,0.23282073,85903.0,85902.0,0.01848]
[1765830720818,0.23282073,85903.0,85893.0,0.01164239]
[1765830720819,0.01164442,85878.0,85872.0,0.0304]
[1765830721037,0.01164551,85870.0,85867.0,0.0304]
[1765830721250,0.23292106,85866.0,85865.0,0.01848]
[1765830721470,0.23292951,85863.0,85860.0,0.03637686]
[1765830721687,0.23294276,85858.0,85857.0,0.01848]
[1765830721903,0.23294276,85858.0,85851.0,0.0002]
[1765830721904,0.2329509,85855.0,85851.0,0.0002]
[1765830722329,0.01164686,85860.0,85856.0,0.24459347]
[1765830722540,0.01164646,85863.0,85860.0,0.01164686]
[1765830722721,0.01164605,85866.0,85860.0,0.01164686]
[1765830723184,0.01164605,85866.0,85857.0,0.002]
[1765830723185,0.23294093,85859.0,85857.0,0.002]
[1765830723387,0.01164673,85861.0,85858.0,0.0433]
[1765830723591,0.01164673,85861.0,85857.0,0.002]
[1765830723592,0.23294169,85859.0,85857.0,0.002]
[1765830723814,0.2329425,85859.0,85857.0,0.002]
[1765830724024,0.01164605,85866.0,85862.0,0.23293065]
[1765830724234,0.01164632,85864.0,85857.0,0.00161287]
[1765830724457,0.23294276,85858.0,85857.0,0.00161287]
[1765830724665,0.23294005,85859.0,85857.0,0.00161287]
[1765830724868,0.01164686,85860.0,85857.0,0.00161287]
[1765830725090,0.23294139,85859.0,85857.0,0.00161287]
[1765830725896,0.24458565,85860.0,85857.0,0.01426014]
[1765830726102,0.01164537,85871.0,85862.0,0.01164659]
[1765830726347,0.24455147,85872.0,85867.0,0.01164591]
[1765830726547,0.24454909,85873.0,85869.0,0.2329108]
[1765830727022,0.24455165,85872.0,85869.0,0.01164564]
[1765830727274,0.24455165,85872.0,85865.0,0.01164618]
[1765830727275,0.01164564,85869.0,85865.0,0.01164618]
[1765830727514,0.01164564,85869.0,85866.0,0.01164605]
[1765830727740,0.24455924,85869.0,85866.0,0.01164605]
[1765830727974,0.01164578,85868.0,85863.0,0.07451646]
[1765830728187,0.01164537,85871.0,85865.0,0.01164618]
[1765830728339,0.01164537,85871.0,85866.0,0.01164605]
[1765830728546,0.01164578,85868.0,85863.0,0.00161287]
[1765830728770,0.01164591,85867.0,85863.0,0.00161287]
[1765830728966,0.24456497,85867.0,85866.0,0.001]
[1765830729685,0.01164591,85867.0,85864.0,0.24457016]
[1765830729993,0.01164605,85866.0,85863.0,0.01325933]
[1765830730153,0.01164605,85866.0,85863.0,0.00161287]
[1765830730154,0.23292648,85864.0,85863.0,0.00161287]
[1765830731263,0.23293733,85860.0,85856.0,0.0116474]
[1765830731461,0.23294354,85858.0,85855.0,0.24459833]
[1765830732004,0.01164659,85862.0,85858.0,0.01164713]
[1765830732199,0.24457104,85865.0,85861.0,0.27623392]
[1765830732200,0.01164618,85865.0,85861.0,0.27623392]
[1765830732356,0.05513289,85875.0,85865.0,0.01164618]
[1765830732357,0.01164537,85871.0,85865.0,0.01164618]
[1765830732576,0.24454717,85873.0,85869.0,0.24455655]
[1765830732978,0.24454717,85873.0,85869.0,0.01164564]
[1765830733177,0.01164483,85875.0,85872.0,0.01164523]
[1765830733382,0.24454432,85874.0,85870.0,0.01164551]
[1765830733759,0.01164496,85874.0,85872.0,0.2329043]
[1765830733975,0.24454227,85875.0,85872.0,0.01164523]
[1765830734174,0.23289956,85874.0,85872.0,0.01164523]
[1765830734605,0.24454227,85875.0,85872.0,0.24454909]
[1765830734783,0.24454227,85875.0,85873.0,0.23290171]
[1765830734984,0.01164496,85874.0,85871.0,0.24455272]
[1765830735215,0.0126451,85873.0,85869.0,0.24455852]
[1765830735382,0.01164483,85875.0,85872.0,0.24455001]
[1765830735607,0.23289665,85875.0,85874.0,0.0433]
[1765830735817,0.01164523,85872.0,85868.0,0.01164578]
[1765830736126,0.01164564,85869.0,85866.0,0.26716662]